bitfinex/quotes_BTCUSD_20251019
["timestamp","ask_amount","ask_price","bid_price","bid_amount"]
[1760871618893,0.00205499,108070.0,108060.0,0.61201287]
[1760871619283,0.00044307,108070.0,108060.0,0.70960287]
[1760871619683,0.00044307,108070.0,108060.0,0.73709619]
[1760871619859,0.00044307,108070.0,108060.0,0.70960287]
[1760871620055,0.00044307,108070.0,108060.0,0.70860287]
[1760871620236,0.00044307,108070.0,108060.0,1.01860286]
[1760871620440,0.00044307,108070.0,108060.0,0.9971315]
[1760871620911,0.00034895,108090.0,108080.0,1.40377225]
[1760871621051,0.00034895,108090.0,108080.0,2.30891015]
[1760871621249,0.00105605,108090.0,108080.0,1.91543015]
[1760871621503,0.00105605,108090.0,108080.0,1.99903016]
[1760871621682,0.00105605,108090.0,108080.0,2.00903015]
[1760871621885,0.00105605,108090.0,108080.0,1.87211016]
[1760871622087,0.00105605,108090.0,108080.0,2.00903015]
[1760871622867,4e-05,108150.0,108130.0,0.37618228]
[1760871623071,0.000534,108150.0,108140.0,0.22423316]
[1760871623608,0.00214503,108150.0,108140.0,0.25202546]
[1760871624024,0.00426494,108150.0,108140.0,0.91202544]
[1760871624218,0.00426494,108150.0,108140.0,0.93538545]
[1760871624580,0.00426494,108150.0,108140.0,0.94534544]
[1760871624966,0.00426494,108150.0,108140.0,0.94514552]
[1760871625315,0.00426494,108150.0,108140.0,0.84605432]
[1760871625470,0.00426494,108150.0,108140.0,0.97301432]
[1760871625667,0.00426494,108150.0,108140.0,0.84605432]
[1760871625874,0.00426494,108150.0,108140.0,0.62969433]
[1760871626084,0.00426494,108150.0,108140.0,0.63969432]
[1760871626490,0.00426494,108150.0,108140.0,0.63869432]
[1760871626691,0.00426494,108150.0,108140.0,0.80887204]
[1760871626892,0.00426494,108150.0,108140.0,0.63969432]
[1760871627252,0.00426494,108150.0,108140.0,0.63869432]
[1760871627453,0.00265391,108150.0,108140.0,0.94869431]
[1760871627660,0.00265391,108150.0,108140.0,1.24969431]
[1760871627865,0.01117737,108160.0,108150.0,0.39618226]
[1760871628067,0.01132559,108160.0,108150.0,1.18452015]
[1760871628285,0.01132559,108160.0,108150.0,1.17452016]
[1760871628494,0.01132559,108160.0,108150.0,1.30168016]
[1760871629310,0.01132559,108160.0,108150.0,1.60168016]
[1760871629514,0.01441035,108290.0,108230.0,0.02999997]
[1760871629716,0.34,108250.0,108240.0,0.09384]
[1760871629916,3.43441088,108250.0,108240.0,0.09384]
[1760871630117,3.0,108240.0,108230.0,0.01999998]
[1760871630365,3.09441088,108240.0,108230.0,0.09388]
[1760871630599,3.09441088,108240.0,108230.0,0.11387998]
[1760871630760,0.34,108230.0,108220.0,0.02999997]
[1760871630962,3.43455907,108240.0,108230.0,0.01999998]
[1760871631252,3.43655907,108240.0,108230.0,0.01999998]
[1760871631566,0.34,108230.0,108220.0,0.12391997]
[1760871632078,0.34004,108230.0,108220.0,0.02999997]
[1760871632282,3.43445088,108230.0,108220.0,0.01999998]
[1760871632492,0.34,108220.0,108210.0,0.08815998]
[1760871632641,0.43441088,108220.0,108210.0,0.08815998]
[1760871632985,0.43441088,108220.0,108210.0,0.11387998]
[1760871632986,3.43441088,108220.0,108210.0,0.11387998]
[1760871633581,0.34,108210.0,108200.0,0.00999999]
[1760871633793,3.0,108200.0,108190.0,0.01999998]
[1760871633997,3.43441088,108200.0,108190.0,0.04851998]
[1760871634228,3.46381507,108200.0,108180.0,0.09243998]
[1760871634408,0.09441088,108190.0,108180.0,0.01999998]
[1760871634832,0.34,108180.0,108160.0,0.00999999]
[1760871635008,0.43441088,108180.0,108170.0,0.06595998]
[1760871635217,0.4728607,108180.0,108170.0,0.06595998]
[1760871635690,0.38006071,108180.0,108170.0,0.06595998]
[1760871636072,0.00161089,108180.0,108170.0,0.07595997]
[1760871636278,0.00161089,108180.0,108170.0,0.20655313]
[1760871637106,0.00261089,108180.0,108170.0,0.20655313]
[1760871637441,0.00161089,108180.0,108170.0,0.20655313]
[1760871637850,0.00161089,108180.0,108170.0,0.20755313]
[1760871640523,0.00161089,108180.0,108170.0,0.03099997]
[1760871640716,0.00161089,108180.0,108170.0,0.12483997]
[1760871641301,0.03761153,108200.0,108170.0,0.12483997]
[1760871641504,0.47202241,108200.0,108190.0,0.01999998]
[1760871641691,0.43441088,108200.0,108190.0,0.11383998]
[1760871642806,0.47279314,108200.0,108190.0,0.11383998]
[1760871643211,0.47379314,108200.0,108190.0,0.11383998]
[1760871643616,0.47383314,108200.0,108190.0,0.11383998]
[1760871644405,0.47544372,108200.0,108190.0,0.11383998]
[1760871644894,0.47044372,108200.0,108190.0,0.11383998]
[1760871645884,0.47044372,108200.0,108190.0,0.09384]
[1760871646086,0.47044372,108200.0,108190.0,0.11383998]
[1760871646212,0.47220901,108200.0,108190.0,0.11383998]
[1760871646622,0.50000064,108200.0,108190.0,0.11383998]
[1760871647178,0.50000064,108200.0,108190.0,0.09384]
[1760871647359,0.50000064,108200.0,108190.0,0.11383998]
[1760871647884,0.34,108190.0,108180.0,0.01999998]
[1760871648096,0.34,108190.0,108180.0,0.11379998]
[1760871648289,0.34,108190.0,108180.0,0.10379999]
[1760871648616,0.34,108190.0,108180.0,0.00999999]
[1760871648750,0.09441088,108190.0,108180.0,0.0938]
[1760871648955,0.09441088,108190.0,108180.0,0.11379998]
[1760871650304,0.06782447,108200.0,108180.0,0.0938]
[1760871650450,3.17950898,108200.0,108190.0,0.01999998]
[1760871651539,0.34,108190.0,108180.0,0.11379998]
[1760871653120,0.34004,108190.0,108180.0,0.0938]
[1760871653327,0.34145236,108190.0,108180.0,0.0938]
[1760871653535,0.00145236,108190.0,108180.0,0.11375998]
[1760871653737,0.00145236,108190.0,108180.0,0.12375997]
[1760871654188,0.00145236,108190.0,108180.0,0.25435313]
[1760871654571,0.00145236,108190.0,108180.0,0.21817085]
[1760871654865,0.00245236,108190.0,108180.0,0.21817085]
[1760871655432,0.00145236,108190.0,108180.0,0.25435313]
[1760871655991,0.00145236,108190.0,108180.0,0.30911891]
[1760871656194,0.00145236,108190.0,108180.0,1.64304593]
[1760871656409,0.00145236,108190.0,108180.0,1.65304593]
[1760871656798,0.00145236,108190.0,108180.0,1.65053927]
[1760871657216,0.00014957,108190.0,108180.0,1.68053925]
[1760871657418,0.00014957,108190.0,108180.0,1.75199645]
[1760871657565,0.00014957,108190.0,108180.0,1.77948977]
[1760871657771,0.00175958,108190.0,108180.0,1.68189977]
[1760871658300,4e-05,108200.0,108190.0,0.45452433]
[1760871658507,4e-05,108200.0,108190.0,0.90974853]
[1760871659067,4e-05,108200.0,108190.0,1.00374853]
[1760871659322,4e-05,108200.0,108190.0,0.87642853]
[1760871659621,4e-05,108200.0,108190.0,1.00374853]
[1760871659822,4e-05,108200.0,108190.0,0.87642853]
[1760871660024,4e-05,108200.0,108190.0,1.00370853]
[1760871660247,4e-05,108200.0,108190.0,0.87842853]
[1760871660501,4e-05,108200.0,108190.0,0.62991313]
[1760871660910,4e-05,108200.0,108190.0,0.46641085]
[1760871661115,4e-05,108200.0,108190.0,0.22045085]
[1760871661314,4e-05,108200.0,108190.0,0.12641085]
[1760871661542,4e-05,108200.0,108190.0,0.21845085]
[1760871661751,0.03704964,108250.0,108240.0,0.01999998]
[1760871661959,3.0,108240.0,108220.0,0.00999999]
[1760871662133,0.09441088,108240.0,108230.0,0.03899998]
[1760871662361,0.09441088,108240.0,108210.0,0.00999999]
[1760871662512,3.09441088,108230.0,108220.0,0.01999998]
[1760871662899,3.0,108220.0,108210.0,0.01999998]
[1760871663100,0.09441088,108220.0,108210.0,0.01999998]
[1760871663323,3.0,108220.0,108210.0,0.02999997]
[1760871663521,0.00014817,108230.0,108220.0,0.02999997]
[1760871663723,0.00014817,108230.0,108220.0,0.12411997]
[1760871664198,0.00175834,108230.0,108220.0,0.12411997]
[1760871664554,0.00155975,108230.0,108220.0,0.12411997]
[1760871664772,0.00155975,108230.0,108220.0,0.25471313]
[1760871665706,0.00155975,108230.0,108220.0,0.59471313]
[1760871667109,0.00155975,108230.0,108220.0,0.59571313]
[1760871667824,0.00316865,108230.0,108220.0,0.99330313]
[1760871667979,0.00316865,108230.0,108220.0,0.89571313]
[1760871668326,0.00316865,108230.0,108220.0,0.89471313]
[1760871668461,0.00316865,108230.0,108220.0,1.59964015]
[1760871668666,0.00316865,108230.0,108220.0,1.62451248]
[1760871670452,0.00316865,108230.0,108220.0,1.62296015]
[1760871670669,0.00316865,108230.0,108220.0,0.15869085]
[1760871671095,0.00316865,108230.0,108220.0,0.25281085]
[1760871671294,0.00155975,108230.0,108220.0,0.25281085]
[1760871671536,0.00155975,108230.0,108220.0,0.25181085]
[1760871671752,0.00155975,108230.0,108220.0,0.25281085]
[1760871672079,0.00155975,108230.0,108220.0,0.12541085]
[1760871672241,0.00155975,108230.0,108220.0,0.21853085]
[1760871672561,0.00155975,108230.0,108220.0,0.25471313]
[1760871673171,0.00155975,108230.0,108220.0,1.27864015]
[1760871673374,0.00155975,108230.0,108220.0,1.57864015]
[1760871673525,0.00155975,108230.0,108220.0,1.27864015]
[1760871673723,0.00155975,108230.0,108220.0,1.28864015]
[1760871673929,0.00155975,108230.0,108220.0,1.58864015]
[1760871675260,0.00155975,108230.0,108220.0,1.62351248]
[1760871675465,0.00316942,108230.0,108220.0,1.62351248]
[1760871676482,0.00316942,108230.0,108220.0,1.62451248]
[1760871676859,0.00316942,108230.0,108220.0,1.59964015]
[1760871676985,3.0,108340.0,108290.0,0.02999997]
[1760871677189,3.0,108320.0,108300.0,0.09408]
[1760871677430,3.09441088,108310.0,108300.0,0.09408]
[1760871677632,3.09441088,108310.0,108290.0,0.02999997]
[1760871677871,3.0,108300.0,108290.0,0.01999998]
[1760871678093,3.0,108300.0,108290.0,0.11407998]
[1760871678468,0.13208655,108310.0,108300.0,0.01999998]
[1760871679040,0.13258037,108310.0,108300.0,0.01999998]
[1760871679431,0.03816949,108310.0,108300.0,0.01999998]
[1760871679694,0.13258037,108310.0,108300.0,0.11403998]
[1760871679899,0.13258037,108310.0,108180.0,0.0277638]
[1760871679900,0.00999999,108230.0,108180.0,0.0277638]
[1760871680108,0.35,108290.0,108190.0,3.0]
[1760871680109,0.03618228,108210.0,108190.0,3.0]
[1760871680315,0.00999999,108220.0,108110.0,0.0004]
[1760871680316,0.03618228,108170.0,108110.0,0.0004]
[1760871680521,0.01,108170.0,108140.0,0.03328]
[1760871680705,0.01,108170.0,108150.0,0.08136]
[1760871681145,0.02718585,108170.0,108160.0,0.09576]
[1760871681358,0.01,108180.0,108160.0,0.09576]
[1760871681510,0.01,108170.0,108160.0,0.09576]
[1760871681725,0.01,108180.0,108160.0,0.09576]
[1760871681921,0.01,108200.0,108160.0,0.09576]
[1760871682087,0.01,108210.0,108160.0,0.09576]
[1760871682288,0.01,108210.0,108170.0,0.09592]
[1760871682488,0.01,108220.0,108180.0,0.096]
[1760871682736,0.01,108200.0,108190.0,0.096]
[1760871682914,0.01,108200.0,108190.0,0.19041088]
[1760871683581,0.01,108200.0,108190.0,0.09441088]
[1760871683785,0.01,108200.0,108170.0,0.00350699]
[1760871684049,0.01161034,108200.0,108190.0,0.00014817]
[1760871684246,0.02880267,108200.0,108190.0,0.09610817]
[1760871684456,0.02880267,108200.0,108190.0,0.00014817]
[1760871684919,0.02880267,108200.0,108190.0,0.00346817]
[1760871685119,0.02880267,108200.0,108190.0,0.00014817]
[1760871685259,0.02880267,108200.0,108190.0,0.00114817]
[1760871685460,0.02880267,108200.0,108190.0,0.00358817]
[1760871685891,0.02880267,108200.0,108190.0,0.03362817]
[1760871686466,0.02880267,108200.0,108190.0,0.06214817]
[1760871687585,0.00161034,108200.0,108190.0,0.15655905]
[1760871687797,0.0103528,108240.0,108190.0,0.15655905]
[1760871688010,0.0103528,108240.0,108200.0,0.00025551]
[1760871688208,0.0103528,108240.0,108210.0,0.096]
[1760871688406,0.0103528,108240.0,108220.0,0.09441088]
[1760871688677,0.0103528,108240.0,108230.0,0.096]
[1760871689014,0.0103528,108240.0,108230.0,0.09596]
[1760871689218,0.0113528,108240.0,108230.0,0.09596]
[1760871689813,0.0103528,108240.0,108230.0,0.09596]
[1760871690494,0.0003528,108240.0,108230.0,0.19037088]
[1760871690697,0.0003528,108240.0,108230.0,0.52655316]
[1760871691138,0.0013528,108240.0,108230.0,0.86655316]
[1760871691342,0.0013528,108240.0,108230.0,1.55048018]
[1760871691725,0.0003528,108240.0,108230.0,1.55048018]
[1760871691930,0.0003528,108240.0,108230.0,1.56148017]
[1760871692274,0.0003528,108240.0,108230.0,1.4193379]
[1760871692517,0.0003528,108240.0,108230.0,1.2143379]
[1760871692839,0.0003528,108240.0,108230.0,1.2163379]
[1760871693364,0.0003528,108240.0,108230.0,1.1203379]
[1760871693536,0.00196235,108240.0,108230.0,1.5162979]
[1760871693768,0.00196235,108240.0,108230.0,1.55248018]
[1760871694569,0.00196235,108240.0,108230.0,1.46652017]
[1760871694796,0.00196235,108240.0,108230.0,1.55244018]
[1760871694911,0.00196235,108240.0,108230.0,1.45652018]
[1760871695111,0.00196235,108240.0,108230.0,1.55248018]
[1760871695772,0.00196235,108240.0,108230.0,1.25244018]
[1760871695970,0.00196235,108240.0,108230.0,1.1203379]
[1760871696167,0.00196235,108240.0,108230.0,0.7803379]
[1760871696327,0.00196235,108240.0,108230.0,0.09641088]
[1760871696539,0.0003528,108240.0,108230.0,0.09641088]
[1760871696765,0.00196256,108240.0,108230.0,0.19233088]
[1760871696969,0.01196256,108240.0,108230.0,0.19233088]
[1760871697189,0.01196256,108240.0,108210.0,0.03328]
[1760871697396,0.01196256,108240.0,108220.0,0.19033088]
[1760871697574,0.01196256,108240.0,108230.0,0.002]
[1760871698277,0.01,108230.0,108210.0,0.00014817]
[1760871698484,0.01,108220.0,108210.0,0.00114817]
[1760871698826,0.01,108220.0,108210.0,0.00014817]
[1760871699029,0.01,108220.0,108210.0,0.02978817]
[1760871699284,0.01,108220.0,108210.0,0.05794817]
[1760871699489,0.01,108220.0,108210.0,0.00014817]
[1760871699631,0.01,108220.0,108210.0,0.08466817]
[1760871700118,0.34,108280.0,108230.0,0.01]
[1760871700319,0.34,108240.0,108220.0,0.01]
[1760871700731,3.0,108230.0,108220.0,0.01]
[1760871700904,0.01716402,108230.0,108220.0,0.01]
[1760871701415,0.13221675,108240.0,108230.0,0.01]
[1760871701594,0.14938078,108240.0,108230.0,0.01]
[1760871702014,0.48938078,108240.0,108230.0,0.01]
[1760871702223,0.03618228,108220.0,108190.0,0.00068854]
[1760871702572,3.37618228,108180.0,108170.0,0.00250699]
[1760871702793,3.4705887,108180.0,108170.0,0.00250699]
[1760871703440,3.62184437,108180.0,108170.0,0.00250699]
[1760871703645,3.59377734,108180.0,108170.0,0.00250699]
[1760871705455,0.37618228,108150.0,108130.0,0.00932]
[1760871705663,3.47059316,108140.0,108130.0,0.009814]
[1760871705907,3.56499958,108140.0,108130.0,0.000494]
[1760871706110,3.5837696,108140.0,108130.0,0.010174]
[1760871706322,3.48936318,108140.0,108130.0,0.010174]
[1760871706849,3.48936318,108140.0,108130.0,0.000494]
[1760871707978,3.48940318,108140.0,108130.0,0.000494]
[1760871708404,3.48940318,108140.0,108130.0,0.014774]
[1760871708619,3.58219827,108140.0,108130.0,0.014774]
[1760871708758,3.58219827,108140.0,108130.0,0.000494]
[1760871710514,3.58319827,108140.0,108130.0,0.000494]
[1760871710943,3.58219827,108140.0,108130.0,0.000494]
[1760871711932,3.58319827,108140.0,108130.0,0.000494]
[1760871715298,3.48879185,108140.0,108130.0,0.000494]
[1760871715464,3.45422101,108140.0,108130.0,0.000494]
[1760871715670,3.11422101,108140.0,108130.0,0.000494]
[1760871716649,3.45422101,108140.0,108130.0,0.000494]
[1760871717024,3.49040329,108140.0,108130.0,0.000494]
[1760871718267,3.45422101,108140.0,108130.0,0.000494]
[1760871718470,3.45422101,108140.0,108130.0,0.00044062]
[1760871720290,3.49040329,108140.0,108130.0,0.00840062]
[1760871720472,3.48879185,108140.0,108130.0,0.00840062]
[1760871721584,3.48879185,108140.0,108130.0,0.00044062]
[1760871721768,3.58319827,108140.0,108130.0,0.00044062]
[1760871723997,3.58480975,108140.0,108130.0,0.00044062]
[1760871724417,3.49040333,108140.0,108130.0,0.00044062]
[1760871724622,0.01981017,108140.0,108130.0,0.00044062]
[1760871724833,0.01511383,108140.0,108130.0,0.00044062]
[1760871725041,0.00104,108140.0,108130.0,0.00044062]
[1760871725248,0.00104,108140.0,108130.0,0.0366229]
[1760871725633,0.00104,108140.0,108130.0,1.05122772]
[1760871725839,0.00104,108140.0,108130.0,1.1456386]
[1760871726457,4e-05,108140.0,108130.0,1.1456386]
[1760871726662,4e-05,108140.0,108130.0,1.2754386]
[1760871726890,0.00104,108140.0,108130.0,1.1456386]
[1760871727048,0.00104,108140.0,108130.0,1.2753986]
[1760871727245,4e-05,108140.0,108130.0,1.2753986]
[1760871727650,4e-05,108140.0,108130.0,1.2763986]
[1760871728330,0.00165079,108140.0,108130.0,1.2763986]
[1760871728772,4e-05,108140.0,108130.0,1.2763986]
[1760871729654,4e-05,108140.0,108130.0,1.5763986]
[1760871729814,4e-05,108140.0,108130.0,1.65564373]
[1760871730014,4e-05,108140.0,108130.0,1.50588375]
[1760871730213,4e-05,108140.0,108130.0,1.59635858]
[1760871730389,4e-05,108140.0,108130.0,1.59535858]
[1760871730589,4e-05,108140.0,108130.0,1.58535859]
[1760871730830,4e-05,108140.0,108130.0,1.28635859]
[1760871731029,4e-05,108140.0,108130.0,1.2763586]
[1760871731235,4e-05,108140.0,108130.0,1.15563859]
[1760871731396,4e-05,108140.0,108130.0,1.28535859]
[1760871731608,4e-05,108140.0,108130.0,1.28635859]
[1760871731819,4e-05,108140.0,108130.0,1.2763586]
[1760871732212,4e-05,108140.0,108130.0,1.28635859]
[1760871732742,0.00165044,108140.0,108130.0,1.15663859]
[1760871732914,0.00165044,108140.0,108130.0,1.28635859]
[1760871733321,0.00165044,108140.0,108130.0,1.15663859]
[1760871733686,0.00165044,108140.0,108130.0,1.2763186]
[1760871734205,0.00165044,108140.0,108130.0,1.28631859]
[1760871735111,0.00165044,108140.0,108130.0,0.9362386]
[1760871735448,0.00165044,108140.0,108130.0,1.2762386]
[1760871735641,0.00165044,108140.0,108130.0,0.1291715]
[1760871735815,0.00165044,108140.0,108130.0,0.2254515]
[1760871736009,0.00165044,108140.0,108130.0,0.0958515]
[1760871736231,0.00165044,108140.0,108130.0,0.2244515]
[1760871736445,0.00165044,108140.0,108130.0,0.0958515]
[1760871736643,0.00165044,108140.0,108130.0,0.1920915]
[1760871737199,0.00165044,108140.0,108130.0,0.1910915]
[1760871737399,0.00165044,108140.0,108130.0,0.0958515]
[1760871737602,0.00165044,108140.0,108130.0,0.1920915]
[1760871737944,0.00165044,108140.0,108130.0,0.1910915]
[1760871738147,0.00165044,108140.0,108130.0,0.0948515]
[1760871738349,0.00165044,108140.0,108130.0,0.1910915]
[1760871738476,0.00165044,108140.0,108130.0,0.09668062]
[1760871738682,4e-05,108140.0,108130.0,0.09668062]
[1760871739676,0.03618228,108190.0,108130.0,0.09668062]
[1760871739677,0.34,108220.0,108150.0,0.00999999]
[1760871739895,0.09441088,108190.0,108150.0,0.10619999]
[1760871740320,0.34,108170.0,108150.0,0.10619999]
[1760871740497,3.0,108160.0,108150.0,0.0962]
[1760871740865,3.0,108160.0,108150.0,0.10619999]
[1760871741316,0.09441088,108160.0,108140.0,0.00999999]
[1760871741516,0.34,108150.0,108140.0,0.10615999]
[1760871741723,3.34,108150.0,108140.0,0.02156]
[1760871741940,3.34,108150.0,108140.0,0.03155999]
[1760871742165,3.43441088,108150.0,108140.0,0.02156]
[1760871742389,0.34,108140.0,108130.0,0.00044062]
[1760871742590,3.47785197,108140.0,108130.0,0.00044062]
[1760871742973,2.97785197,108140.0,108130.0,0.00044062]
[1760871743171,3.13785197,108140.0,108130.0,0.00044062]
[1760871743544,3.13885197,108140.0,108130.0,0.00044062]
[1760871743751,3.14046324,108140.0,108130.0,0.00044062]
[1760871744352,3.16446798,108140.0,108130.0,0.00044062]
[1760871744911,3.50446798,108140.0,108130.0,0.00044062]
[1760871745294,3.50346798,108140.0,108130.0,0.00044062]
[1760871745749,3.52273668,108140.0,108130.0,0.00044062]
[1760871747722,3.52273668,108140.0,108130.0,0.00038439]
[1760871748334,3.42833026,108140.0,108130.0,0.00038439]
[1760871748552,3.40945029,108140.0,108130.0,0.00038439]
[1760871748748,3.06945029,108140.0,108130.0,0.01038438]
[1760871749232,3.06945029,108140.0,108130.0,0.00038439]
[1760871749437,3.06745029,108140.0,108130.0,0.00038439]
[1760871749640,3.50185671,108140.0,108130.0,0.00038439]
[1760871749855,3.50385671,108140.0,108130.0,0.00038439]
[1760871750058,0.34,108110.0,108090.0,0.00999999]
[1760871750236,0.00049299,108110.0,108100.0,0.00999999]
[1760871750467,0.00049299,108110.0,108100.0,0.01070689]
[1760871750884,0.00049299,108110.0,108100.0,0.02790957]
[1760871751110,0.00049299,108110.0,108100.0,0.0007069]
[1760871751316,0.00049299,108110.0,108100.0,0.02070688]
[1760871753246,0.00210459,108110.0,108100.0,0.02070688]
[1760871755459,0.00214459,108110.0,108100.0,0.02070688]
[1760871756044,0.00214459,108110.0,108100.0,0.02790957]
[1760871756455,0.00214459,108110.0,108100.0,0.12232045]
[1760871756721,0.00214459,108110.0,108100.0,0.15850273]
[1760871759626,0.00053299,108110.0,108100.0,0.15850273]
[1760871759873,0.00053299,108110.0,108100.0,0.12232045]
[1760871760025,0.00053299,108110.0,108100.0,0.23454275]
[1760871760231,0.00053299,108110.0,108100.0,0.24454274]
[1760871760830,0.00053299,108110.0,108100.0,0.25454273]
[1760871762984,0.00214433,108110.0,108100.0,0.25454273]
[1760871766589,0.00164433,108110.0,108100.0,0.59454273]
[1760871768293,3.299e-05,108110.0,108100.0,0.59454273]
[1760871768887,3.299e-05,108110.0,108100.0,0.25454273]
[1760871769892,3.299e-05,108110.0,108100.0,0.24454274]
[1760871770315,3.299e-05,108110.0,108100.0,0.25454273]
[1760871771585,0.00164421,108110.0,108100.0,0.25454273]
[1760871772544,3.299e-05,108110.0,108100.0,0.25454273]
[1760871772750,3.299e-05,108110.0,108100.0,0.24454274]
[1760871772927,3.299e-05,108110.0,108100.0,0.25454273]
[1760871775853,0.00164419,108110.0,108100.0,0.25454273]
[1760871776591,4e-05,108140.0,108130.0,0.01999998]
[1760871776822,4e-05,108140.0,108130.0,0.24634136]
[1760871777025,4e-05,108140.0,108130.0,0.2709755]
[1760871779532,0.0367434,108160.0,108150.0,0.00999999]
[1760871779737,0.34,108200.0,108150.0,0.0956]
[1760871779910,3.34,108180.0,108150.0,0.0956]
[1760871780107,3.34,108180.0,108170.0,0.00999999]
[1760871780314,3.35729374,108180.0,108170.0,0.10555999]
[1760871780518,3.39450335,108180.0,108170.0,0.10555999]
[1760871780715,3.39450335,108180.0,108170.0,0.10455999]
[1760871780917,3.58332065,108180.0,108170.0,0.00999999]
[1760871781150,0.34,108160.0,108130.0,0.00999999]
[1760871781351,0.34,108140.0,108130.0,0.00014822]
[1760871781523,0.34,108140.0,108130.0,0.01014821]
[1760871781774,3.34,108140.0,108130.0,0.01014821]
[1760871782131,3.43440642,108140.0,108130.0,0.09582822]
[1760871782330,3.0,108170.0,108130.0,0.09582822]
[1760871782540,3.0,108150.0,108130.0,0.10582821]
[1760871782668,3.0,108140.0,108130.0,0.09582822]
[1760871783028,3.0,108140.0,108130.0,0.10582821]
[1760871783247,3.0,108140.0,108130.0,0.09582822]
[1760871783446,3.1888173,108140.0,108130.0,0.09582822]
[1760871784372,3.5288173,108140.0,108130.0,0.00014822]
[1760871784589,3.54773385,108140.0,108130.0,0.00014822]
[1760871786627,3.54873385,108140.0,108130.0,0.00014822]
[1760871788967,3.64433385,108140.0,108130.0,0.00014822]
[1760871789596,3.84116266,108140.0,108130.0,0.00014822]
[1760871790056,3.87734494,108140.0,108130.0,0.00014822]
[1760871792364,3.87573353,108140.0,108130.0,0.00014822]
[1760871794384,0.34,108130.0,108110.0,0.00035342]
[1760871794592,3.52993088,108120.0,108110.0,0.00035342]
[1760871794779,3.54723602,108120.0,108110.0,0.00035342]
[1760871795174,3.52993088,108120.0,108110.0,0.00035342]
[1760871795374,3.5315428,108120.0,108110.0,0.00035342]
[1760871795693,3.4360228,108120.0,108110.0,0.00035342]
[1760871795887,3.45727742,108120.0,108110.0,0.00035342]
[1760871796735,3.45827742,108120.0,108110.0,0.00035342]
[1760871797169,3.45727742,108120.0,108110.0,0.00035342]
[1760871797722,3.45827742,108120.0,108110.0,0.00035342]
[1760871798321,3.4370228,108120.0,108110.0,0.00035342]
[1760871805782,0.4370228,108120.0,108110.0,0.00035342]
[1760871805981,0.34261192,108120.0,108110.0,0.01035341]
[1760871806759,0.34161192,108120.0,108110.0,0.01035341]
[1760871807516,0.34,108120.0,108110.0,0.01035341]
[1760871808540,0.34,108120.0,108110.0,0.00035342]
[1760871808696,0.37401367,108120.0,108110.0,0.01035341]
[1760871809643,0.34,108120.0,108110.0,0.00035342]
[1760871809804,0.34,108120.0,108110.0,0.01035341]
[1760871810378,0.34,108120.0,108110.0,0.00035342]
[1760871810512,0.34,108120.0,108110.0,0.01035341]
[1760871811157,3.35732215,108120.0,108110.0,0.01035341]
[1760871811360,3.54713945,108120.0,108110.0,0.00035342]
[1760871811841,3.54875248,108120.0,108110.0,0.00035342]
[1760871812279,3.54875248,108120.0,108110.0,0.01035341]
[1760871812480,3.54875248,108120.0,108110.0,0.00035342]
[1760871812481,0.45334606,108120.0,108110.0,0.00035342]
[1760871812680,0.45334606,108120.0,108110.0,0.01035341]
[1760871814068,0.45334606,108120.0,108110.0,0.00035342]
[1760871814338,3.49869433,108120.0,108110.0,0.00035342]
[1760871814544,3.49969433,108120.0,108110.0,0.00035342]
[1760871815977,3.45434606,108120.0,108110.0,0.01035341]
[1760871818785,3.45273428,108120.0,108110.0,0.01035341]
[1760871821316,3.45273428,108120.0,108110.0,0.00035342]
[1760871823077,3.4543461,108120.0,108110.0,0.00035342]
[1760871823511,0.4543461,108120.0,108110.0,0.00035342]
[1760871824276,0.1133461,108120.0,108110.0,0.00035342]
[1760871824479,0.1143461,108120.0,108110.0,0.00035342]
[1760871825027,0.1133461,108120.0,108110.0,0.00035342]
[1760871826116,0.12469438,108120.0,108110.0,0.00035342]
[1760871826907,3.12469438,108120.0,108110.0,0.00035342]
[1760871827788,3.12569438,108120.0,108110.0,0.00035342]
[1760871829473,3.1143461,108120.0,108110.0,0.00035342]
[1760871829681,0.1143461,108120.0,108110.0,0.00035342]
[1760871829891,0.001,108120.0,108110.0,0.09143341]
[1760871830090,0.001,108120.0,108110.0,0.4414334]
[1760871830722,0.00013668,108130.0,108120.0,0.00999999]
[1760871830906,0.00013668,108130.0,108120.0,0.01999998]
[1760871831322,0.00013668,108130.0,108120.0,0.00999999]
[1760871831654,0.00013668,108130.0,108120.0,0.01999998]
[1760871832020,0.00013668,108130.0,108110.0,0.1758443]
[1760871832021,0.09454756,108130.0,108110.0,0.01035341]
[1760871832179,3.0,108120.0,108110.0,0.01035341]
[1760871832385,0.09441088,108120.0,108110.0,0.01035341]
[1760871832585,3.0,108120.0,108110.0,0.01035341]
[1760871833200,3.34,108120.0,108110.0,0.00035342]
[1760871833413,0.34161164,108120.0,108110.0,0.01035341]
[1760871834879,0.34161164,108120.0,108110.0,0.00035342]
[1760871835352,0.34161164,108120.0,108110.0,0.01035341]
[1760871838000,0.00161164,108120.0,108110.0,0.01035341]
[1760871838936,0.00013668,108130.0,108120.0,0.00999999]
[1760871839591,0.00174827,108130.0,108120.0,0.00999999]
[1760871841179,0.00013668,108130.0,108120.0,0.00999999]
[1760871843352,0.00013668,108130.0,108110.0,0.01035341]
[1760871843560,0.00013668,108130.0,108110.0,0.0203534]
[1760871844166,0.00174826,108130.0,108110.0,0.0203534]
[1760871846267,3.0,108130.0,108110.0,0.0203534]
[1760871847056,0.09440642,108130.0,108110.0,0.0203534]
[1760871847263,3.0,108120.0,108110.0,0.00035342]
[1760871847469,3.0,108120.0,108110.0,0.01035341]
[1760871848395,3.0,108120.0,108110.0,0.00035342]
[1760871848594,3.0,108120.0,108110.0,0.01035341]
[1760871849191,3.0,108120.0,108110.0,0.00035342]
[1760871849431,0.09440642,108120.0,108110.0,0.00035342]
[1760871849653,0.34,108120.0,108110.0,0.01035341]
[1760871849894,0.34161166,108120.0,108110.0,0.01035341]
[1760871850312,0.00161166,108120.0,108110.0,0.01035341]
[1760871850541,0.00161166,108120.0,108110.0,0.0203534]
[1760871851416,0.3926,108150.0,108110.0,0.05653568]
[1760871851638,3.09441088,108140.0,108130.0,0.00999999]
[1760871851852,3.0,108140.0,108130.0,0.00999999]
[1760871853673,3.0,108150.0,108130.0,0.00999999]
[1760871853891,3.0,108150.0,108140.0,0.00999999]
[1760871854119,0.34,108150.0,108140.0,0.00999999]
[1760871854349,0.34,108150.0,108130.0,0.00999999]
[1760871854560,0.34161142,108150.0,108140.0,0.00999999]
[1760871854777,0.34,108150.0,108140.0,0.00999999]
[1760871855437,3.0,108150.0,108140.0,0.00999999]
[1760871855856,3.0,108150.0,108140.0,0.01999998]